fUST/lending_fUST_20250720
["ID","MTS","AMOUNT","RATE_DAILY","PERIOD"]
[373347693,1752959441291,-500.0,0.00019473,2]
[373347694,1752959441300,-500.0,0.00019473,2]
[373347695,1752959441309,-152.474155,0.0001949,2]
[373347696,1752959441318,-178.1115364,0.000195,2]
[373347697,1752959441328,-525.83049785,0.00019578,2]
[373347698,1752959441337,-476.34170116,0.00019578,2]
[373347699,1752959441347,-215.67360783,0.00019578,2]
[373347700,1752959441356,-160.0,0.00019578,2]
[373347701,1752959441365,-839.454303,0.00019578,2]
[373347702,1752959441374,-160.0,0.00019578,2]
[373347703,1752959441383,-12612.80205064,0.00019578,2]
[373347704,1752959441393,-160.0,0.00019578,2]
[373347705,1752959441402,-214.52603969,0.00019578,2]
[373347706,1752959441412,-230.94145789,0.00019578,2]
[373347707,1752959441421,-160.0,0.00019578,2]
[373347708,1752959441431,-160.0,0.00019578,2]
[373347709,1752959441440,-160.0,0.00019578,2]
[373347710,1752959441450,-160.0,0.00019578,2]
[373347711,1752959441459,-160.0,0.00019578,2]
[373347712,1752959441468,-159.8125085,0.000196,2]
[373347713,1752959441478,-577.1515091,0.000196,2]
[373347714,1752959441487,-178.1115364,0.000196,2]
[373347715,1752959441497,-155.1266088,0.000196,2]
[373347716,1752959441507,-429.3901486,0.000196,2]
[373347717,1752959441516,-178.1115364,0.000196,2]
[373347718,1752959441526,-577.1515091,0.000196,2]
[373347719,1752959441536,-178.1115364,0.000196,2]
[373347720,1752959441545,-1154.3030182,0.000196,2]
[373347721,1752959441554,-178.1115364,0.000196,2]
[373347722,1752959441563,-429.3901486,0.000196,2]
[373347723,1752959441573,-429.3901486,0.00019671,2]
[373347724,1752959441583,-429.3901486,0.00019671,2]
[373347725,1752959441592,-429.3901486,0.00019671,2]
[373347726,1752959441602,-429.3901486,0.00019671,2]
[373347727,1752959441611,-858.7802972,0.00019671,2]
[373347728,1752959441621,-1053.43,0.0001969,2]
[373347729,1752959441630,-1264.3,0.0001969,2]
[373347730,1752959441639,-460.0,0.0001969,2]
[373347731,1752959441649,-1122.31,0.0001969,2]
[373347732,1752959441659,-470.95,0.0001969,2]
[373347733,1752959441669,-490.42,0.0001969,2]
[373347734,1752959441683,-575.08,0.0001969,2]
[373347735,1752959441693,-1489.39,0.0001969,2]
[373347736,1752959441702,-460.0,0.00019691,2]
[373347737,1752959441713,-460.0,0.00019691,2]
[373347738,1752959441722,-460.0,0.00019691,2]
[373347739,1752959441732,-460.0,0.00019691,2]
[373347740,1752959441742,-217.68,0.00019691,2]
[373347741,1752959441751,-460.0,0.00019691,2]
[373347742,1752959441760,-460.0,0.00019691,2]
[373347743,1752959441770,-460.0,0.00019691,2]
[373347744,1752959441779,-594.86,0.00019691,2]
[373347745,1752959441789,-653.24,0.00019691,2]
[373347746,1752959441798,-460.0,0.00019691,2]
[373347747,1752959441807,-460.0,0.00019691,2]
[373347748,1752959441816,-460.0,0.00019691,2]
[373347749,1752959441825,-460.0,0.00019691,2]
[373347750,1752959441835,-671.0,0.00019692,2]
[373347751,1752959441844,-220.44796763,0.00019692,2]
[373347752,1752959441853,-151.0,0.00019692,2]
[373347753,1752959441862,-546.0,0.00019692,2]
[373347754,1752959441871,-460.0,0.00019692,2]
[373347755,1752959441880,-1198.7,0.00019692,2]
[373347756,1752959441890,-460.0,0.00019692,2]
[373347757,1752959441899,-721.24,0.00019692,2]
[373347758,1752959441910,-857.57,0.00019692,2]
[373347759,1752959441919,-460.0,0.00019692,2]
[373347760,1752959441929,-898.29,0.00019692,2]
[373347761,1752959441939,-451.3937918,0.000197,2]
[373347762,1752959441948,-429.3901486,0.000197,2]
[373347763,1752959441957,-429.3901486,0.000197,2]
[373347764,1752959441967,-429.3901486,0.000197,2]
[373347765,1752959441976,-159.8125085,0.000197,2]
[373347766,1752959441986,-577.1515091,0.000197,2]
[373347767,1752959441995,-159.8125085,0.000197,2]
[373347768,1752959442004,-159.8125085,0.000197,2]
[373347769,1752959442013,-429.3901486,0.000197,2]
[373347770,1752959442022,-577.1515091,0.000197,2]
[373347771,1752959442031,-178.1115364,0.000197,2]
[373347772,1752959442040,-178.1115364,0.000197,2]
[373347773,1752959442049,-178.1115364,0.000197,2]
[373347774,1752959442059,-577.1515091,0.000197,2]
[373347775,1752959442069,-2138.88783557,0.00019765,2]
[373347776,1752959442080,-520.37179257,0.00019825,2]
[373347777,1752959442091,-12999.20350234,0.00019826,2]
[373347778,1752959442101,-207.4,0.00019826,2]
[373347779,1752959442112,-17671.62993046,0.00019865,2]
[373347780,1752959442121,-214.26297717,0.000199,2]
[373347781,1752959442130,-9444.63228602,0.000199,2]
[373347782,1752959442140,-1053.43,0.00019964,2]
[373347783,1752959442150,-1264.3,0.00019964,2]
[373347784,1752959442161,-460.0,0.00019964,2]
[373347785,1752959442170,-1122.31,0.00019964,2]
[373347786,1752959442179,-470.95,0.00019964,2]
[373347787,1752959442188,-490.42,0.00019964,2]
[373347788,1752959442198,-575.08,0.00019964,2]
[373347789,1752959442207,-1489.39,0.00019964,2]
[373347790,1752959442217,-460.0,0.00019965,2]
[373347791,1752959442227,-460.0,0.00019965,2]
[373347792,1752959442236,-460.0,0.00019965,2]
[373347793,1752959442246,-460.0,0.00019965,2]
[373347794,1752959442257,-460.0,0.00019965,2]
[373347795,1752959442267,-460.0,0.00019965,2]
[373347796,1752959442278,-460.0,0.00019965,2]
[373347797,1752959442291,-594.86,0.00019965,2]
[373347798,1752959442302,-653.24,0.00019965,2]
[373347799,1752959442313,-460.0,0.00019965,2]
[373347800,1752959442324,-460.0,0.00019965,2]
[373347801,1752959442336,-460.0,0.00019965,2]
[373347802,1752959442345,-671.0,0.00019966,2]
[373347803,1752959442355,-151.0,0.00019966,2]
[373347804,1752959442365,-546.0,0.00019966,2]
[373347805,1752959442375,-460.0,0.00019966,2]
[373347806,1752959442385,-1198.7,0.00019966,2]
[373347807,1752959442395,-460.0,0.00019966,2]
[373347808,1752959442405,-721.24,0.00019966,2]
[373347809,1752959442415,-857.57,0.00019966,2]
[373347810,1752959442425,-460.0,0.00019966,2]
[373347811,1752959442434,-898.29,0.00019966,2]
[373347812,1752959442443,-58192.92830392,0.0001999,2]
[373347813,1752959442453,-181.55711,0.0002,2]
[373347814,1752959442463,-181.55711,0.0002,2]
[373347815,1752959442473,-181.55711,0.0002,2]
[373347816,1752959442482,-181.55711,0.0002,2]
[373347817,1752959442492,-151.0,0.0002,2]
[373347818,1752959442502,-151.0,0.0002,2]
[373347819,1752959442512,-14300.23978458,0.0002,2]
[373347820,1752959442522,-497.768648,0.0002,2]
[373347821,1752959442532,-497.768648,0.0002,2]
[373347822,1752959442541,-497.768648,0.0002,2]
[373347823,1752959442551,-497.768648,0.0002,2]
[373347825,1752959442561,-528.15372949,0.00020014,2]
[373347827,1752959442570,-500.0,0.00020021,2]
[373347828,1752959442580,-9444.6322858,0.00020107,2]
[373347829,1752959442589,-307.9988728,0.00020137,2]
[373347830,1752959442598,-212.575171,0.00020187,2]
[373347831,1752959442608,-577.1515091,0.00020219,2]
[373347832,1752959442618,-577.1515091,0.00020219,2]
[373347833,1752959442627,-577.1515091,0.00020219,2]
[373347835,1752959442636,-577.1515091,0.00020219,2]
[373347836,1752959442646,-577.1515091,0.00020219,2]
[373347837,1752959442655,-1148.9313414,0.00020219,2]
[373347838,1752959442665,-1053.43,0.00020238,2]
[373347839,1752959442678,-1264.3,0.00020238,2]
[373347840,1752959442688,-460.0,0.00020238,2]
[373347841,1752959442697,-1122.31,0.00020238,2]
[373347842,1752959442706,-470.95,0.00020238,2]
[373347843,1752959442716,-490.42,0.00020238,2]
[373347844,1752959442727,-575.08,0.00020238,2]
[373347845,1752959442736,-1489.39,0.00020238,2]
[373347846,1752959442745,-460.0,0.00020239,2]
[373347847,1752959442758,-460.0,0.00020239,2]
[373347848,1752959442768,-382.33143859,0.00020239,2]
[373347849,1752959442777,-460.0,0.00020239,2]
[373347850,1752959442786,-460.0,0.00020239,2]
[373347851,1752959442795,-460.0,0.00020239,2]
[373347852,1752959442805,-460.0,0.00020239,2]
[373347853,1752959442814,-594.86,0.00020239,2]
[373347855,1752959442926,-653.24,0.00020239,2]
[373347856,1752959442936,-460.0,0.00020239,2]
[373347857,1752959442946,-460.0,0.00020239,2]
[373347858,1752959442955,-460.0,0.00020239,2]
[373347859,1752959442964,-671.0,0.0002024,2]
[373347860,1752959442974,-245.0,0.0002024,2]
[373347861,1752959442984,-546.0,0.0002024,2]
[373347862,1752959442993,-460.0,0.0002024,2]
[373347863,1752959443003,-1198.7,0.0002024,2]
[373347864,1752959443014,-460.0,0.0002024,2]
[373347865,1752959443024,-721.24,0.0002024,2]
[373347866,1752959443033,-857.57,0.0002024,2]
[373347868,1752959443043,-460.0,0.0002024,2]
[373347869,1752959443054,-898.29,0.0002024,2]
[373347870,1752959443063,-175.2374737,0.00020247,2]
[373347871,1752959443073,-178.1115364,0.00020274,2]
[373347872,1752959443083,-178.1115364,0.00020274,2]
[373347873,1752959443093,-178.1115364,0.00020274,2]
[373347875,1752959443103,-178.1115364,0.00020274,2]
[373347876,1752959443113,-178.1115364,0.00020274,2]
[373347877,1752959443123,-178.1115364,0.00020274,2]
[373347878,1752959443136,-178.1115364,0.00020274,2]
[373347879,1752959443146,-178.1115364,0.00020274,2]
[373347880,1752959443155,-178.1115364,0.00020274,2]
[373347881,1752959443171,-387.83084799,0.00020309,2]
[373347882,1752959443182,-216.14992921,0.00020313,2]
[373347883,1752959443193,-474.90362133,0.00020313,2]
[373347884,1752959443205,-9276.82382517,0.00020314,3]
[373347885,1752959443215,-160.0,0.00020314,3]
[373347886,1752959443224,-476.34170116,0.00020314,3]
[373347887,1752959443233,-12612.80205064,0.00020314,3]
[373347888,1752959443244,-214.52603969,0.00020314,3]
[373347889,1752959443253,-9444.6322858,0.00020314,3]
[373347890,1752959443263,-153.0,0.00020329,2]
[373347891,1752959443272,-153.0,0.00020329,2]
[373347892,1752959443281,-153.0,0.00020329,2]
[373347893,1752959443290,-153.0,0.00020329,2]
[373347894,1752959443300,-178.1115364,0.00020329,2]
[373347895,1752959443309,-2138.88783554,0.00020349,2]
[373347896,1752959443320,-153.0,0.00020384,2]
[373347897,1752959443330,-153.0,0.00020384,2]
[373347898,1752959443340,-153.0,0.00020384,2]
[373347899,1752959443350,-159.1932489,0.00020384,2]
[373347900,1752959443359,-153.0,0.00020384,2]
[373347901,1752959443369,-153.0,0.00020384,2]
[373347902,1752959443379,-153.0,0.00020384,2]
[373347903,1752959443390,-153.0,0.00020384,2]
[373347904,1752959443399,-9292.58942053,0.000205,2]
[373347905,1752959443408,-1053.43,0.00020512,2]
[373347906,1752959443418,-1264.3,0.00020512,2]
[373347908,1752959443428,-211.51147321,0.00020512,2]
[373347909,1752959443438,-1122.31,0.00020512,2]
[373347910,1752959443447,-470.95,0.00020512,2]
[373347911,1752959443457,-490.42,0.00020512,2]
[373347912,1752959443466,-575.08,0.00020512,2]
[373347913,1752959443476,-1489.39,0.00020512,2]
[373347914,1752959443485,-460.0,0.00020513,2]
[373347915,1752959443495,-460.0,0.00020513,2]
[373347916,1752959443504,-460.0,0.00020513,2]
[373347917,1752959443514,-460.0,0.00020513,2]
[373347918,1752959443523,-460.0,0.00020513,2]
[373347919,1752959443533,-460.0,0.00020513,2]
[373347920,1752959443543,-594.86,0.00020513,2]
[373347921,1752959443551,-653.24,0.00020513,2]
[373347922,1752959443561,-460.0,0.00020513,2]
[373347923,1752959443571,-460.0,0.00020513,2]
[373347924,1752959443580,-671.0,0.00020514,2]
[373347925,1752959443590,-546.0,0.00020514,2]
[373347926,1752959443599,-460.0,0.00020514,2]
[373347927,1752959443608,-1198.7,0.00020514,2]
[373347928,1752959443618,-460.0,0.00020514,2]
[373347929,1752959443628,-721.24,0.00020514,2]
[373347930,1752959443638,-857.57,0.00020514,2]
[373347931,1752959443647,-460.0,0.00020514,2]
[373347932,1752959443659,-898.29,0.00020514,2]
[373347933,1752959443668,-700.0,0.00020516,2]
[373347934,1752959443681,-153.0,0.00020521,2]
[373347935,1752959443691,-153.0,0.00020521,2]
[373347936,1752959443700,-9444.6322858,0.00020521,3]
[373347937,1752959443709,-151.0,0.00020521,2]
[373347938,1752959443718,-151.0,0.00020521,2]
[373347939,1752959443727,-151.0,0.00020521,2]
[373347940,1752959443737,-151.0,0.00020521,2]
[373347941,1752959443747,-151.0,0.00020521,2]
[373347942,1752959443756,-151.0,0.00020521,2]
[373347943,1752959443766,-151.0,0.00020521,2]
[373347944,1752959443776,-151.0,0.00020535,2]
[373347945,1752959443785,-151.0,0.00020535,2]
[373347946,1752959443795,-151.0,0.00020535,2]
[373347947,1752959443804,-333.772377,0.00020535,2]
[373347948,1752959443813,-151.0,0.00020535,2]
[373347949,1752959443823,-151.0,0.00020535,2]
[373347950,1752959443832,-1105.184741,0.00020535,2]
[373347951,1752959443842,-1105.184741,0.00020535,2]
[373347952,1752959443851,-266.842087,0.00020535,2]
[373347953,1752959443860,-181.55711,0.00020537,2]
[373347954,1752959443870,-181.55711,0.00020537,2]
[373347955,1752959443882,-497.768648,0.00020537,2]
[373347956,1752959443891,-497.768648,0.00020537,2]
[373347957,1752959443901,-420.0,0.00020568,2]
[373347958,1752959443911,-150.0,0.00020657,2]
[373347959,1752959443921,-203.428,0.00020657,2]
[373347960,1752959443930,-152.474155,0.00020706,3]
[373347961,1752959443940,-9444.6322858,0.00020728,3]
[373347962,1752959443949,-20904.05897788,0.00020739,2]
[373347963,1752959443959,-151.0,0.00020739,2]
[373347964,1752959443969,-151.0,0.00020739,2]
[373347965,1752959443979,-151.0,0.00020739,2]
[373347966,1752959443988,-151.0,0.00020739,2]
[373347967,1752959443998,-151.0,0.00020739,2]
[373347968,1752959444008,-175.61,0.00020772,2]
[373347969,1752959444018,-150.135,0.00020772,2]
[373347970,1752959444029,-150.0,0.00020772,2]
[373347971,1752959444039,-684.939,0.00020772,2]
[373347972,1752959444050,-2156.0,0.00020772,2]
[373347973,1752959444061,-968.0,0.00020772,2]
[373347974,1752959444071,-1705.741,0.00020775,2]
[373347975,1752959444080,-178.336,0.00020775,2]
[373347976,1752959444090,-1053.43,0.00020786,2]
[373347977,1752959444099,-1264.3,0.00020786,2]
[373347978,1752959444109,-1122.31,0.00020786,2]
[373347979,1752959444120,-470.95,0.00020786,2]
[373347980,1752959444134,-490.42,0.00020786,2]
[373347981,1752959444143,-575.08,0.00020786,2]
[373347982,1752959444152,-1489.39,0.00020786,2]
[373347983,1752959444162,-460.0,0.00020787,2]
[373347984,1752959444171,-460.0,0.00020787,2]
[373347985,1752959444182,-519.84493682,0.00020787,2]
[373347986,1752959444192,-460.0,0.00020787,2]
[373347987,1752959444202,-460.0,0.00020787,2]
[373347988,1752959444211,-594.86,0.00020787,2]
[373347989,1752959444221,-653.24,0.00020787,2]
[373347990,1752959444231,-460.0,0.00020787,2]
[373347991,1752959444240,-460.0,0.00020787,2]
[373347992,1752959444250,-671.0,0.00020788,2]
[373347993,1752959444259,-546.0,0.00020788,2]
[373347994,1752959444269,-151.0,0.00020788,2]
[373347995,1752959444278,-155.65301,0.00020788,2]
[373347996,1752959444287,-151.0,0.00020788,2]
[373347997,1752959444297,-450.37205025,0.00020788,2]
[373347998,1752959444306,-151.0,0.00020788,2]
[373347999,1752959444315,-1198.7,0.00020788,2]
[373348000,1752959444325,-460.0,0.00020788,2]
[373348001,1752959444335,-721.24,0.00020788,2]
[373348002,1752959444344,-857.57,0.00020788,2]
[373348003,1752959444354,-460.0,0.00020788,2]
[373348004,1752959444363,-898.29,0.00020788,2]
[373348005,1752959444372,-350.14,0.00020807,3]
[373348006,1752959444382,-151.0,0.00020813,2]
[373348007,1752959444391,-151.0,0.00020813,2]
[373348008,1752959444401,-152.474155,0.0002086,2]
[373348009,1752959444412,-160.0,0.00020896,2]
[373348010,1752959444422,-2138.88783554,0.00020933,2]
[373348011,1752959444431,-9444.6322858,0.00020934,4]
[373348012,1752959444440,-151.776609,0.00020935,2]
[373348013,1752959444450,-501.89293347,0.00020973,2]
[373348014,1752959444460,-500.0,0.00020973,2]
[373348015,1752959444470,-224.2,0.0002099,2]
[373348016,1752959444480,-155278.22780946,0.00021,4]
[373348017,1752959444583,-45.79477419,0.00021,4]
[373348018,1752959444593,-151.0,0.00021,2]
[373348019,1752959444603,-892.16872469,0.00021,2]
[373348020,1752959444615,-586.48494287,0.00021,2]
[373348021,1752959444627,-184.05633244,0.00021,2]
[373348022,1752959444637,-151.0,0.00021,2]
[373348023,1752959444647,-241.619572,0.00021,2]
[373348024,1752959444656,-151.0,0.00021,2]
[373348025,1752959444667,-215.175957,0.00021,2]
[373348026,1752959444680,-151.0,0.00021,2]
[373348027,1752959444690,-239.836,0.00021,2]
[373348028,1752959444700,-151.0,0.00021,2]
[373348029,1752959444709,-151.0,0.00021,2]
[373348030,1752959444719,-226.665178,0.00021,2]
[373348031,1752959444728,-151.0,0.00021,2]
[373348032,1752959444737,-151.0,0.00021,2]
[373348033,1752959444747,-151.0,0.00021,2]
[373348034,1752959444757,-333.772377,0.00021,2]
[373348035,1752959444768,-151.0,0.00021,2]
[373348036,1752959444777,-151.0,0.00021,2]
[373348037,1752959444786,-1105.184741,0.00021,2]
[373348038,1752959444796,-1105.184741,0.00021,2]
[373348039,1752959444805,-181.55711,0.00021,2]
[373348040,1752959444815,-181.55711,0.00021,2]
[373348041,1752959444824,-3000.0,0.00021,2]
[373348042,1752959444833,-151.452743,0.00021,2]
[373348043,1752959444843,-151.0,0.00021,2]
[373348044,1752959444852,-151.0,0.00021,2]
[373348045,1752959444862,-497.768648,0.00021,2]
[373348046,1752959444871,-497.768648,0.00021,2]
[373348047,1752959444881,-151.0,0.00021,2]
[373348048,1752959444891,-151.0,0.00021,2]
[373348049,1752959444900,-151.0,0.00021,2]
[373348050,1752959444911,-151.0,0.00021,2]
[373348051,1752959444920,-151.0,0.00021,2]
[373348052,1752959444930,-151.0,0.00021,2]
[373348053,1752959444939,-151.0,0.00021,2]
[373348054,1752959444948,-151.0,0.00021,2]
[373348055,1752959444958,-151.0,0.00021,2]
[373348056,1752959444967,-151.0,0.00021,2]
[373348057,1752959444977,-151.0,0.00021,2]
[373348058,1752959444987,-152.474155,0.00021,4]
[373348059,1752959444996,-151.0,0.00021,2]
[373348060,1752959445006,-151.0,0.00021,2]
[373348061,1752959445015,-151.0,0.00021,2]
[373348062,1752959445024,-151.0,0.00021,2]
[373348063,1752959445033,-151.0,0.00021,2]
[373348064,1752959445043,-151.0,0.00021,2]
[373348065,1752959445052,-151.0,0.00021,2]
[373348066,1752959445061,-151.0,0.00021,2]
[373348067,1752959445071,-151.0,0.00021,2]
[373348068,1752959445082,-151.0,0.00021,2]
[373348069,1752959445091,-151.0,0.00021,2]
[373348070,1752959445101,-1947.64968756,0.0002101,2]
[373348071,1752959445113,-1052.35031244,0.0002101,2]
[373348072,1752959445123,-1786.07615739,0.0002102,2]
[373348073,1752959445155,-320.84299408,0.00019865,2]
[373348074,1752959445167,-9172.2396168,0.00019865,2]
[373348075,1752959445177,-1213.92384261,0.0002102,2]
[373348076,1752959445186,-403.84594256,0.00021029,2]
[373348080,1752959446304,-460.0,0.00018869,2]
[373348081,1752959446314,-178.1115364,0.000197,2]
[373348082,1752959446325,-96.15405744,0.00021029,2]
[373348083,1752959446336,-586.25875063,0.00021029,2]
[373348084,1752959446346,-500.0,0.00021029,2]
[373348085,1752959446356,-474.90362134,0.00021029,2]
[373348086,1752959446366,-3000.0,0.0002103,2]
[373348087,1752959446376,-3000.0,0.0002104,2]
[373348088,1752959446385,-3000.0,0.0002105,2]
[373348089,1752959446395,-2424.95136605,0.0002106,2]
[373348090,1752959446410,-575.04863395,0.0002106,2]
[373348091,1752959446420,-1053.43,0.0002106,2]
[373348092,1752959446433,-1264.3,0.0002106,2]
[373348093,1752959446442,-1122.31,0.0002106,2]
[373348094,1752959446452,-470.95,0.0002106,2]
[373348095,1752959446462,-490.42,0.0002106,2]
[373348096,1752959446471,-575.08,0.0002106,2]
[373348097,1752959446481,-1489.39,0.0002106,2]
[373348098,1752959446492,-460.0,0.00021061,2]
[373348099,1752959446502,-460.0,0.00021061,2]
[373348100,1752959446512,-209.57,0.00021061,2]
[373348101,1752959446521,-460.0,0.00021061,2]
[373348102,1752959446530,-306.03302322,0.00021061,2]
[373348103,1752959446542,-288.82697678,0.00021061,2]
[373348104,1752959446551,-169.67302322,0.00021061,2]
[373348105,1752959637450,150.0,0.00014745,2]
[373348108,1752959702803,150.0,0.00014792,2]
[373348109,1752959703548,150.0,0.00015496,2]
[373348110,1752959768669,150.0,0.0001472,2]
[373348111,1752959769090,150.0,0.00015421,2]
[373348115,1752960026361,11230.48444109,0.00024,120]
[373348116,1752960396960,-226.49149221,0.00018767,2]
[373348117,1752960397993,219.904909,0.00013699,2]
[373348229,1752960632876,-300.0,0.00017999,2]
[373348231,1752960632886,-300.0,0.00017999,2]
[373348233,1752960632897,-238.0,0.00017999,2]
[373348235,1752960632907,-1200.0,0.00017999,2]
[373348237,1752960632917,-9695.0,0.00018,2]
[373348240,1752960632928,-2844.79651708,0.00018,2]
[373348242,1752960632940,-968.28113904,0.00018,2]
[373348245,1752960632955,-22100.04340957,0.00018,2]
[373348247,1752960632964,-9344.02740431,0.00018,2]
[373348249,1752960632981,-10515.68311182,0.00018,2]
[373348251,1752960633002,-3010.90107877,0.00018767,2]
[373348252,1752960633012,-700.3,0.00018857,3]
[373348255,1752960633021,-400.99,0.00018857,3]
[373348257,1752960633031,-417.99,0.00018857,3]
[373348259,1752960633040,-208.99,0.00018857,3]
[373348262,1752960633050,-627.0,0.00018857,3]
[373348265,1752960633059,-372.06,0.00018858,3]
[373348267,1752960633069,-460.0,0.00018865,2]
[373348269,1752960633079,-460.0,0.00018865,2]
[373348271,1752960633090,-460.0,0.00018865,2]
[373348273,1752960633100,-460.0,0.00018865,2]
[373348275,1752960633110,-460.0,0.00018865,2]
[373348278,1752960633119,-460.0,0.00018865,2]
[373348280,1752960633128,-460.0,0.00018865,2]
[373348281,1752960633138,-565.49,0.00018865,2]
[373348282,1752960633149,-460.0,0.00018865,2]
[373348283,1752960633159,-460.0,0.00018866,2]
[373348285,1752960633169,-460.0,0.00018866,2]
[373348287,1752960633179,-1477.4,0.00018866,2]
[373348288,1752960633189,-460.0,0.00018866,2]
[373348289,1752960633199,-1094.54,0.00018866,2]
[373348291,1752960633209,-460.0,0.00018866,2]
[373348292,1752960633219,-932.63,0.00018866,2]
[373348293,1752960633228,-460.0,0.00018866,2]
[373348294,1752960633238,-460.0,0.00018866,2]
[373348295,1752960633247,-460.0,0.00018866,2]
[373348296,1752960633257,-460.0,0.00018866,2]
[373348297,1752960633267,-1056.61,0.00018866,2]
[373348298,1752960633277,-460.0,0.00018866,2]
[373348299,1752960633287,-460.0,0.00018866,2]
[373348300,1752960633297,-460.0,0.00018866,2]
[373348301,1752960633307,-476.76,0.00018866,2]
[373348302,1752960633317,-528.44,0.00018866,2]
[373348303,1752960633327,-460.0,0.00018866,2]
[373348304,1752960633337,-460.0,0.00018866,2]
[373348305,1752960633347,-460.0,0.00018866,2]
[373348306,1752960633356,-460.0,0.00018866,2]
[373348307,1752960633367,-460.0,0.00018866,2]
[373348308,1752960633376,-460.0,0.00018866,2]
[373348309,1752960633388,-499.12462448,0.00018866,2]
[373348310,1752960633399,-460.0,0.00018867,2]
[373348311,1752960633409,-480.64364207,0.00018867,2]
[373348312,1752960633418,-460.0,0.00018867,2]
[373348313,1752960633427,-460.0,0.00018867,2]
[373348314,1752960633437,-460.0,0.00018867,2]
[373348315,1752960633447,-460.0,0.00018867,2]
[373348316,1752960633456,-460.0,0.00018867,2]
[373348317,1752960633467,-460.0,0.00018867,2]
[373348318,1752960633476,-460.0,0.00018867,2]
[373348319,1752960633486,-460.0,0.00018867,2]
[373348320,1752960633495,-249.29026326,0.00018867,2]
[373348321,1752960633504,-375.70183003,0.00018867,2]
[373348322,1752960633513,-460.0,0.00018867,2]
[373348323,1752960633523,-579.64256966,0.00018867,2]
[373348324,1752960633532,-460.0,0.00018867,2]
[373348325,1752960633542,-460.0,0.00018867,2]
[373348326,1752960633552,-460.0,0.00018867,2]
[373348327,1752960633561,-460.0,0.00018867,2]
[373348328,1752960633571,-460.0,0.00018867,2]
[373348329,1752960633580,-460.0,0.00018867,2]
[373348330,1752960633591,-460.0,0.00018867,2]
[373348331,1752960633600,-460.0,0.00018867,2]
[373348332,1752960633610,-160.0,0.00018867,2]
[373348333,1752960633619,-460.0,0.00018867,2]
[373348334,1752960633628,-460.0,0.00018867,2]
[373348335,1752960633638,-460.0,0.00018867,2]
[373348336,1752960633648,-460.0,0.00018867,2]
[373348337,1752960633658,-460.0,0.00018867,2]
[373348338,1752960633668,-460.0,0.00018867,2]
[373348339,1752960633678,-460.0,0.00018867,2]
[373348340,1752960633688,-281.74443626,0.00018867,2]
[373348341,1752960633697,-460.0,0.00018867,2]
[373348342,1752960633707,-486.28937559,0.00018867,2]
[373348343,1752960633717,-231.70147138,0.00018867,2]
[373348344,1752960633727,-460.0,0.00018867,2]
[373348345,1752960633736,-460.0,0.00018867,2]
[373348346,1752960633745,-460.0,0.00018867,2]
[373348347,1752960633755,-460.0,0.00018867,2]
[373348348,1752960633765,-460.0,0.00018867,2]
[373348349,1752960633774,-460.0,0.00018867,2]